[Event "*** Titled Tuesday Blitz"]
[Site "Chess.com"]
[Date "2020.11.03"]
[Round "7"]
[White "Qvalda"]
[Black "marabu44"]
[Result "1-0"]
[WhiteElo "2398"]
[BlackElo "2250"]
[TimeControl "180+1"]
[EndTime "11:20:37 PST"]
[Termination "Qvalda won on time"]

1. e4 {[%clk 0:03:00.9]} 1... e5 {[%clk 0:02:58.9]} 2. Nf3 {[%clk 0:03:00.7]}
2... Nc6 {[%clk 0:02:58.3]} 3. Nc3 {[%clk 0:03:00.9]} 3... Nf6 {[%clk
0:02:57.5]} 4. d4 {[%clk 0:03:01]} 4... exd4 {[%clk 0:02:56.6]} 5. Nxd4 {[%clk
0:03:01.9]} 5... Bb4 {[%clk 0:02:56.3]} 6. Nxc6 {[%clk 0:03:02.3]} 6... bxc6
{[%clk 0:02:55.4]} 7. Bd3 {[%clk 0:03:02.9]} 7... d5 {[%clk 0:02:53.4]} 8. exd5
{[%clk 0:03:03.8]} 8... cxd5 {[%clk 0:02:53]} 9. O-O {[%clk 0:03:04.5]} 9... O-O
{[%clk 0:02:52.6]} 10. Bg5 {[%clk 0:03:04.4]} 10... c6 {[%clk 0:02:50.4]} 11.
Na4 {[%clk 0:03:04.3]} 11... Be7 {[%clk 0:02:40.4]} 12. b3 {[%clk 0:03:01.9]}
12... Bg4 {[%clk 0:02:34.9]} 13. Qd2 {[%clk 0:02:44.5]} 13... Ne4 {[%clk
0:02:16.8]} 14. Bxe7 {[%clk 0:02:41.4]} 14... Nxd2 {[%clk 0:02:16.1]} 15. Bxd8
{[%clk 0:02:42.1]} 15... Nxf1 {[%clk 0:02:16]} 16. Bg5 {[%clk 0:02:37.3]} 16...
h6 {[%clk 0:01:59.9]} 17. Bc1 {[%clk 0:02:31.6]} 17... Nxh2 {[%clk 0:01:53.3]}
18. Kxh2 {[%clk 0:02:30.3]} 18... Rfe8 {[%clk 0:01:51.8]} 19. Be3 {[%clk
0:02:29.5]} 19... Bh5 {[%clk 0:01:30.4]} 20. c4 {[%clk 0:02:27.4]} 20... Bg6
{[%clk 0:01:22.9]} 21. Bxg6 {[%clk 0:02:26.6]} 21... fxg6 {[%clk 0:01:23.4]} 22.
cxd5 {[%clk 0:02:27]} 22... cxd5 {[%clk 0:01:24]} 23. Rd1 {[%clk 0:02:27]} 23...
Red8 {[%clk 0:01:23.5]} 24. Nc3 {[%clk 0:02:25.8]} 24... d4 {[%clk 0:01:16.3]}
25. Rxd4 {[%clk 0:02:25.3]} 25... Rdc8 {[%clk 0:01:11.1]} 26. Nd5 {[%clk
0:02:09.9]} 26... Rc2 {[%clk 0:01:07.2]} 27. Ra4 {[%clk 0:02:09.4]} 27... Rd8
{[%clk 0:00:54.8]} 28. Ne7+ {[%clk 0:01:47.1]} 28... Kh7 {[%clk 0:00:53.4]} 29.
Rxa7 {[%clk 0:01:46]} 29... Rd1 {[%clk 0:00:44.5]} 30. b4 {[%clk 0:01:40.2]}
30... Rb2 {[%clk 0:00:39.9]} 31. Bc5 {[%clk 0:01:37.9]} 31... h5 {[%clk
0:00:34.1]} 32. a4 {[%clk 0:01:33.1]} 32... h4 {[%clk 0:00:32.2]} 33. Kh3 {[%clk
0:01:29.3]} 33... g5 {[%clk 0:00:20.9]} 34. Kg4 {[%clk 0:01:25.9]} 34... Rc2
{[%clk 0:00:14]} 35. Nf5 {[%clk 0:01:06.1]} 35... Rg1 {[%clk 0:00:13.4]} 36.
Rxg7+ {[%clk 0:01:04.4]} 36... Kh8 {[%clk 0:00:13]} 37. Rxg5 {[%clk 0:01:01.8]}
37... Rxg2+ {[%clk 0:00:12.5]} 38. Kxh4 {[%clk 0:01:01.1]} 38... Rc4+ {[%clk
0:00:11.5]} 39. Kh5 {[%clk 0:00:57.3]} 39... Rxf2 {[%clk 0:00:09.2]} 40. Bd4+
{[%clk 0:00:48]} 40... Kh7 {[%clk 0:00:02]} 41. Rg7+ {[%clk 0:00:47.7]} 41...
Kh8 {[%clk 0:00:02.4]} 42. Rg2+ {[%clk 0:00:45.6]} 42... Rxd4 {[%clk 0:00:02]}
43. Rxf2 {[%clk 0:00:44.6]} 1-0

[Event "*** Titled Tuesday Blitz"]
[Site "Chess.com"]
[Date "2020.11.03"]
[Round "7"]
[White "lamomiablanca"]
[Black "Dinamo3"]
[Result "1-0"]
[WhiteElo "2299"]
[BlackElo "2407"]
[TimeControl "180+1"]
[EndTime "11:20:38 PST"]
[Termination "lamomiablanca won on time"]

1. e4 {[%clk 0:03:00.9]} 1... c6 {[%clk 0:03:00.1]} 2. d4 {[%clk 0:02:59.7]}
2... d5 {[%clk 0:03:00.6]} 3. Nc3 {[%clk 0:02:58.7]} 3... dxe4 {[%clk
0:03:00.9]} 4. Nxe4 {[%clk 0:02:59.4]} 4... Bf5 {[%clk 0:03:01.6]} 5. Ng3 {[%clk
0:02:55.8]} 5... Bg6 {[%clk 0:03:02]} 6. Nf3 {[%clk 0:02:55.9]} 6... Nd7 {[%clk
0:03:01.6]} 7. Bd3 {[%clk 0:02:55.9]} 7... Ngf6 {[%clk 0:03:01.2]} 8. O-O {[%clk
0:02:55.9]} 8... e6 {[%clk 0:03:01.3]} 9. Re1 {[%clk 0:02:55.1]} 9... Be7 {[%clk
0:03:01.6]} 10. c4 {[%clk 0:02:54.3]} 10... Qc7 {[%clk 0:03:01.7]} 11. Bxg6
{[%clk 0:02:52.3]} 11... hxg6 {[%clk 0:03:01.6]} 12. Qe2 {[%clk 0:02:52.7]}
12... O-O-O {[%clk 0:02:57.7]} 13. Bd2 {[%clk 0:02:52]} 13... Bd6 {[%clk
0:02:56.2]} 14. b4 {[%clk 0:02:49.4]} 14... Kb8 {[%clk 0:02:55.3]} 15. a4 {[%clk
0:02:45]} 15... Ng4 {[%clk 0:02:34.9]} 16. c5 {[%clk 0:02:06.3]} 16... Bf4
{[%clk 0:02:30.3]} 17. b5 {[%clk 0:02:00.1]} 17... Bxd2 {[%clk 0:02:26.7]} 18.
Qxd2 {[%clk 0:01:54.6]} 18... e5 {[%clk 0:02:12.6]} 19. Qg5 {[%clk 0:01:39.7]}
19... f5 {[%clk 0:01:31.4]} 20. Qxg6 {[%clk 0:00:59.8]} 20... e4 {[%clk
0:01:28.7]} 21. Ng5 {[%clk 0:00:55]} 21... Nxf2 {[%clk 0:00:09.1]} 22. Ne6
{[%clk 0:00:36.9]} 22... Qc8 {[%clk 0:00:09.2]} 23. Nxd8 {[%clk 0:00:22.7]}
23... Nd3 {[%clk 0:00:07.9]} 24. Nf7 {[%clk 0:00:18.8]} 24... Nxe1 {[%clk
0:00:05.5]} 25. Nxh8 {[%clk 0:00:18.1]} 25... Nd3 {[%clk 0:00:05.6]} 26. Nf7
{[%clk 0:00:16.4]} 26... f4 {[%clk 0:00:05.4]} 27. Nxe4 {[%clk 0:00:15.8]} 27...
Qe8 {[%clk 0:00:02.9]} 28. Rd1 {[%clk 0:00:11.7]} 1-0

[Event "*** Titled Tuesday Blitz"]
[Site "Chess.com"]
[Date "2020.11.03"]
[Round "7"]
[White "ajdemipopushi"]
[Black "Deepweb2020"]
[Result "0-1"]
[WhiteElo "2362"]
[BlackElo "2261"]
[TimeControl "180+1"]
[EndTime "11:20:38 PST"]
[Termination "Deepweb2020 won on time"]

1. Nf3 {[%clk 0:02:59.3]} 1... Nf6 {[%clk 0:02:59.9]} 2. g3 {[%clk 0:02:59.2]}
2... d5 {[%clk 0:02:58.9]} 3. c4 {[%clk 0:02:59.1]} 3... e6 {[%clk 0:02:59.6]}
4. Bg2 {[%clk 0:02:59.1]} 4... Be7 {[%clk 0:02:59.3]} 5. O-O {[%clk 0:02:58.8]}
5... O-O {[%clk 0:02:59.4]} 6. d4 {[%clk 0:02:59.2]} 6... b6 {[%clk 0:02:53.8]}
7. Nc3 {[%clk 0:02:49.2]} 7... c6 {[%clk 0:02:53.2]} 8. Ne5 {[%clk 0:02:34.2]}
8... a5 {[%clk 0:02:39.2]} 9. Qc2 {[%clk 0:02:14.6]} 9... Bb7 {[%clk 0:02:29.1]}
10. e4 {[%clk 0:02:12.8]} 10... Na6 {[%clk 0:02:24.8]} 11. a3 {[%clk 0:02:09.6]}
11... Rc8 {[%clk 0:02:21.5]} 12. Rd1 {[%clk 0:02:08.1]} 12... Nd7 {[%clk
0:01:59]} 13. Nxd7 {[%clk 0:01:37.4]} 13... Qxd7 {[%clk 0:01:57.4]} 14. Qe2
{[%clk 0:01:38]} 14... dxc4 {[%clk 0:01:47.6]} 15. Qxc4 {[%clk 0:01:36.9]} 15...
Nc7 {[%clk 0:01:42.8]} 16. Qb3 {[%clk 0:01:26.2]} 16... b5 {[%clk 0:01:31.6]}
17. Bf4 {[%clk 0:01:22.2]} 17... Na8 {[%clk 0:01:19.3]} 18. Rac1 {[%clk
0:01:15]} 18... a4 {[%clk 0:01:15.1]} 19. Qc2 {[%clk 0:01:13.2]} 19... Nb6
{[%clk 0:01:12.7]} 20. h4 {[%clk 0:01:00]} 20... Rfd8 {[%clk 0:01:10.7]} 21. Qe2
{[%clk 0:00:34.8]} 21... Qe8 {[%clk 0:01:01.8]} 22. Qg4 {[%clk 0:00:25.5]} 22...
Nc4 {[%clk 0:00:56.5]} 23. Rc2 {[%clk 0:00:24.2]} 23... g6 {[%clk 0:00:50.7]}
24. h5 {[%clk 0:00:23.1]} 24... f5 {[%clk 0:00:49.9]} 25. Qe2 {[%clk 0:00:16.9]}
25... Qf7 {[%clk 0:00:35.3]} 26. hxg6 {[%clk 0:00:15.1]} 26... hxg6 {[%clk
0:00:33.7]} 27. Bc1 {[%clk 0:00:13.9]} 27... Rd7 {[%clk 0:00:27.1]} 28. Nxa4
{[%clk 0:00:10.6]} 28... Rcd8 {[%clk 0:00:22]} 0-1

[Event "*** Titled Tuesday Blitz"]
[Site "Chess.com"]
[Date "2020.11.03"]
[Round "7"]
[White "Witik"]
[Black "kleopl"]
[Result "0-1"]
[WhiteElo "2608"]
[BlackElo "2450"]
[TimeControl "180+1"]
[EndTime "11:20:41 PST"]
[Termination "kleopl won on time"]

1. e4 {[%clk 0:03:00.9]} 1... c6 {[%clk 0:02:59.3]} 2. d4 {[%clk 0:03:00.6]}
2... d5 {[%clk 0:03:00.2]} 3. e5 {[%clk 0:03:01.1]} 3... c5 {[%clk 0:02:59.9]}
4. Nf3 {[%clk 0:03:00.9]} 4... Nc6 {[%clk 0:02:59.1]} 5. c4 {[%clk 0:03:00.9]}
5... cxd4 {[%clk 0:02:56.8]} 6. Nxd4 {[%clk 0:03:00]} 6... Nxd4 {[%clk
0:02:48.2]} 7. Qxd4 {[%clk 0:02:59.3]} 7... e6 {[%clk 0:02:48.4]} 8. Nc3 {[%clk
0:02:27.6]} 8... Bb4 {[%clk 0:02:46.5]} 9. cxd5 {[%clk 0:02:18.2]} 9... Bxc3+
{[%clk 0:02:46.3]} 10. Qxc3 {[%clk 0:02:10.2]} 10... Qxd5 {[%clk 0:02:43.5]} 11.
Bg5 {[%clk 0:02:02]} 11... h6 {[%clk 0:02:17.9]} 12. Rd1 {[%clk 0:01:55.8]}
12... Qe4+ {[%clk 0:02:17.3]} 13. Be3 {[%clk 0:01:52.8]} 13... Ne7 {[%clk
0:02:05.5]} 14. Bb5+ {[%clk 0:01:47.6]} 14... Nc6 {[%clk 0:02:04.2]} 15. Qc5
{[%clk 0:01:35.6]} 15... Qxg2 {[%clk 0:01:49.4]} 16. Ke2 {[%clk 0:01:31.2]}
16... Bd7 {[%clk 0:01:37.8]} 17. Rxd7 {[%clk 0:01:18.5]} 17... Kxd7 {[%clk
0:01:36.6]} 18. Rd1+ {[%clk 0:01:17.8]} 18... Kc8 {[%clk 0:01:23.5]} 19. Rd6
{[%clk 0:01:08.4]} 19... Kc7 {[%clk 0:00:55.2]} 20. Rxc6+ {[%clk 0:00:49.1]}
20... bxc6 {[%clk 0:00:52.9]} 21. Qe7+ {[%clk 0:00:48.7]} 21... Kb8 {[%clk
0:00:44.5]} 22. Qd6+ {[%clk 0:00:28.9]} 22... Kb7 {[%clk 0:00:44.4]} 23. Qd7+
{[%clk 0:00:28.7]} 23... Kb8 {[%clk 0:00:44.4]} 24. Ba6 {[%clk 0:00:10.8]} 24...
Qg4+ {[%clk 0:00:37.3]} 25. f3 {[%clk 0:00:03.8]} 25... Qb4 {[%clk 0:00:37]} 26.
Bc5 {[%clk 0:00:03.8]} 26... Qxb2+ {[%clk 0:00:35.3]} 27. Kd3 {[%clk 0:00:02.8]}
27... Qb1+ {[%clk 0:00:34.6]} 28. Kc3 {[%clk 0:00:01.8]} 28... Qc1+ {[%clk
0:00:32.4]} 29. Kb3 {[%clk 0:00:01.2]} 29... Qb1+ {[%clk 0:00:29.3]} 30. Ka3
{[%clk 0:00:01.4]} 30... Qc1+ {[%clk 0:00:29.3]} 31. Ka4 {[%clk 0:00:01.2]}
31... Qc2+ {[%clk 0:00:29.2]} 32. Ka3 {[%clk 0:00:01.6]} 32... Qxc5+ {[%clk
0:00:27.1]} 33. Kb3 {[%clk 0:00:01.2]} 33... Qb6+ {[%clk 0:00:26.5]} 0-1

[Event "*** Titled Tuesday Blitz"]
[Site "Chess.com"]
[Date "2020.11.03"]
[Round "7"]
[White "BJthechessgod"]
[Black "karwowskikacper"]
[Result "1-0"]
[WhiteElo "2317"]
[BlackElo "2456"]
[TimeControl "180+1"]
[EndTime "11:20:41 PST"]
[Termination "BJthechessgod won on time"]

1. e4 {[%clk 0:02:46.7]} 1... c5 {[%clk 0:02:59.8]} 2. Nf3 {[%clk 0:02:45.1]}
2... Nc6 {[%clk 0:02:56.1]} 3. d4 {[%clk 0:02:45.1]} 3... cxd4 {[%clk 0:02:57]}
4. Nxd4 {[%clk 0:02:46]} 4... g6 {[%clk 0:02:57.2]} 5. Nc3 {[%clk 0:02:38.9]}
5... Bg7 {[%clk 0:02:53.8]} 6. Be3 {[%clk 0:02:39.5]} 6... Nf6 {[%clk
0:02:53.5]} 7. Bc4 {[%clk 0:02:29]} 7... O-O {[%clk 0:02:51.1]} 8. Bb3 {[%clk
0:02:21.3]} 8... d6 {[%clk 0:02:34.3]} 9. f3 {[%clk 0:02:12.2]} 9... a5 {[%clk
0:02:22.2]} 10. Qd2 {[%clk 0:02:08.2]} 10... Bd7 {[%clk 0:02:18.9]} 11. g4
{[%clk 0:02:02.1]} 11... Nxd4 {[%clk 0:02:10]} 12. Bxd4 {[%clk 0:02:01.4]} 12...
a4 {[%clk 0:01:59.9]} 13. Bc4 {[%clk 0:01:49.9]} 13... Qa5 {[%clk 0:01:54.2]}
14. h4 {[%clk 0:01:43.7]} 14... b5 {[%clk 0:01:47.1]} 15. Be2 {[%clk 0:01:28.4]}
15... b4 {[%clk 0:01:32.3]} 16. Nd1 {[%clk 0:01:22]} 16... e5 {[%clk 0:01:11.5]}
17. Be3 {[%clk 0:01:16.2]} 17... Rfd8 {[%clk 0:01:08.6]} 18. h5 {[%clk
0:01:14.1]} 18... d5 {[%clk 0:01:02.3]} 19. Bh6 {[%clk 0:01:09.6]} 19... dxe4
{[%clk 0:00:52.6]} 20. Bxg7 {[%clk 0:01:08.6]} 20... Kxg7 {[%clk 0:00:52.2]} 21.
hxg6 {[%clk 0:01:07.8]} 21... fxg6 {[%clk 0:00:46.7]} 22. Qh6+ {[%clk
0:01:08.2]} 22... Kf7 {[%clk 0:00:18.2]} 23. g5 {[%clk 0:01:07.3]} 23... exf3
{[%clk 0:00:17.6]} 24. gxf6 {[%clk 0:01:06.5]} 24... fxe2 {[%clk 0:00:17.4]} 25.
Qxh7+ {[%clk 0:01:06.5]} 25... Kxf6 {[%clk 0:00:17.8]} 26. Ne3 {[%clk 0:01:06]}
26... b3+ {[%clk 0:00:17.1]} 27. c3 {[%clk 0:01:05.9]} 27... Rh8 {[%clk
0:00:12.7]} 28. Qxd7 {[%clk 0:00:37.1]} 28... Rxh1+ {[%clk 0:00:11.8]} 29. Kxe2
{[%clk 0:00:38]} 29... Qa6+ {[%clk 0:00:10.9]} 30. c4 {[%clk 0:00:37.5]} 30...
Rxa1 {[%clk 0:00:07.6]} 31. Nd5+ {[%clk 0:00:35.9]} 31... Kg5 {[%clk 0:00:08]}
32. Qe7+ {[%clk 0:00:36.2]} 32... Kh6 {[%clk 0:00:08.3]} 33. Qh4+ {[%clk
0:00:36.4]} 33... Kg7 {[%clk 0:00:08.6]} 34. Qe7+ {[%clk 0:00:36.1]} 34... Kh8
{[%clk 0:00:02.6]} 35. Qxe5+ {[%clk 0:00:36.2]} 35... Kh7 {[%clk 0:00:02.6]} 36.
Nf6+ {[%clk 0:00:36.1]} 36... Kh6 {[%clk 0:00:01.9]} 37. Ng4+ {[%clk 0:00:35.7]}
37... Kh7 {[%clk 0:00:02.3]} 38. Qe7+ {[%clk 0:00:36]} 38... Kh8 {[%clk
0:00:01.6]} 39. Ne5 {[%clk 0:00:30.9]} 1-0

[Event "*** Titled Tuesday Blitz"]
[Site "Chess.com"]
[Date "2020.11.03"]
[Round "7"]
[White "Tomekas1"]
[Black "sopo-tereladze"]
[Result "0-1"]
[WhiteElo "2455"]
[BlackElo "2327"]
[TimeControl "180+1"]
[EndTime "11:20:43 PST"]
[Termination "sopo-tereladze won by resignation"]

1. e4 {[%clk 0:03:00.9]} 1... e5 {[%clk 0:02:59.2]} 2. Nf3 {[%clk 0:03:01.2]}
2... Nc6 {[%clk 0:02:59.5]} 3. Bc4 {[%clk 0:03:01.4]} 3... Nf6 {[%clk
0:02:58.8]} 4. Ng5 {[%clk 0:03:01.7]} 4... d5 {[%clk 0:02:58.2]} 5. exd5 {[%clk
0:03:02.6]} 5... Na5 {[%clk 0:02:58.3]} 6. Bb5+ {[%clk 0:03:02.6]} 6... c6
{[%clk 0:02:58.5]} 7. dxc6 {[%clk 0:03:03.3]} 7... bxc6 {[%clk 0:02:59.4]} 8.
Qf3 {[%clk 0:03:03.9]} 8... Bb7 {[%clk 0:02:36.6]} 9. Ba4 {[%clk 0:03:02.4]}
9... h6 {[%clk 0:02:26.5]} 10. Ne4 {[%clk 0:03:02.1]} 10... Nxe4 {[%clk
0:02:26.9]} 11. Qxe4 {[%clk 0:03:02]} 11... Bd6 {[%clk 0:02:27.3]} 12. b4 {[%clk
0:02:51.9]} 12... O-O {[%clk 0:01:12.6]} 13. bxa5 {[%clk 0:02:49.4]} 13... f5
{[%clk 0:01:01.2]} 14. Qc4+ {[%clk 0:02:49.1]} 14... Kh8 {[%clk 0:01:01.4]} 15.
a6 {[%clk 0:02:44.9]} 15... Bc8 {[%clk 0:01:00.7]} 16. Ba3 {[%clk 0:02:37.8]}
16... Rb8 {[%clk 0:00:54.8]} 17. Bxd6 {[%clk 0:02:35.9]} 17... Qxd6 {[%clk
0:00:55.7]} 18. Nc3 {[%clk 0:02:29.6]} 18... c5 {[%clk 0:00:54.1]} 19. Qd5
{[%clk 0:02:02.9]} 19... Qg6 {[%clk 0:00:49]} 20. O-O {[%clk 0:01:55.5]} 20...
Bxa6 {[%clk 0:00:48.5]} 21. d3 {[%clk 0:01:46.2]} 21... Bb7 {[%clk 0:00:46.3]}
22. Rfe1 {[%clk 0:01:14]} 22... Bxd5 {[%clk 0:00:44.9]} 23. Nxd5 {[%clk
0:01:14.3]} 23... e4 {[%clk 0:00:39.6]} 24. Bb3 {[%clk 0:01:01.6]} 24... exd3
{[%clk 0:00:34.3]} 25. cxd3 {[%clk 0:00:59.7]} 25... f4 {[%clk 0:00:33.5]} 26.
Re4 {[%clk 0:00:53.8]} 26... f3 {[%clk 0:00:31.7]} 27. g3 {[%clk 0:00:54.1]}
27... Qf5 {[%clk 0:00:26]} 28. Ne3 {[%clk 0:00:45.7]} 28... Qd7 {[%clk
0:00:20.7]} 29. Bc4 {[%clk 0:00:33.8]} 29... Rb2 {[%clk 0:00:18.2]} 30. a4
{[%clk 0:00:27.8]} 30... Re2 {[%clk 0:00:15.8]} 31. Nd5 {[%clk 0:00:12.7]} 31...
Qh3 {[%clk 0:00:12.6]} 0-1

[Event "*** Titled Tuesday Blitz"]
[Site "Chess.com"]
[Date "2020.11.03"]
[Round "7"]
[White "rynos0411"]
[Black "pavelalexandru07"]
[Result "0-1"]
[WhiteElo "2470"]
[BlackElo "2328"]
[TimeControl "180+1"]
[EndTime "11:20:44 PST"]
[Termination "pavelalexandru07 won by checkmate"]

1. d4 {[%clk 0:03:00.9]} 1... Nf6 {[%clk 0:02:59.7]} 2. c4 {[%clk 0:03:00.2]}
2... c5 {[%clk 0:02:59.5]} 3. d5 {[%clk 0:02:59.7]} 3... e6 {[%clk 0:02:59.9]}
4. Nc3 {[%clk 0:02:59]} 4... exd5 {[%clk 0:03:00.2]} 5. cxd5 {[%clk 0:02:59.9]}
5... d6 {[%clk 0:03:00.5]} 6. Nf3 {[%clk 0:02:57.3]} 6... g6 {[%clk 0:03:00]} 7.
Bf4 {[%clk 0:02:57.6]} 7... Bg7 {[%clk 0:03:00]} 8. Qa4+ {[%clk 0:02:57.4]} 8...
Bd7 {[%clk 0:03:00.5]} 9. Qb3 {[%clk 0:02:57.3]} 9... b5 {[%clk 0:03:00.9]} 10.
Bxd6 {[%clk 0:02:47.3]} 10... Qb6 {[%clk 0:03:00.8]} 11. Be5 {[%clk 0:02:46.2]}
11... O-O {[%clk 0:03:00.6]} 12. e3 {[%clk 0:02:44.2]} 12... c4 {[%clk
0:02:59.5]} 13. Qd1 {[%clk 0:02:34.4]} 13... Rc8 {[%clk 0:02:59.2]} 14. Bd4
{[%clk 0:02:32.2]} 14... Qa5 {[%clk 0:02:56.4]} 15. Be2 {[%clk 0:02:31.8]} 15...
Na6 {[%clk 0:02:36.8]} 16. O-O {[%clk 0:02:29.4]} 16... b4 {[%clk 0:02:27.4]}
17. Nb1 {[%clk 0:02:26.8]} 17... Bb5 {[%clk 0:02:27.8]} 18. a3 {[%clk
0:02:23.8]} 18... Qd8 {[%clk 0:02:17.6]} 19. axb4 {[%clk 0:02:21.4]} 19... Nxb4
{[%clk 0:02:17.7]} 20. Nc3 {[%clk 0:02:21.7]} 20... a6 {[%clk 0:02:10.5]} 21. e4
{[%clk 0:02:20.2]} 21... Qe7 {[%clk 0:02:02.8]} 22. Re1 {[%clk 0:01:56.1]} 22...
Nd7 {[%clk 0:01:24.2]} 23. Bxg7 {[%clk 0:01:53.8]} 23... Kxg7 {[%clk 0:01:25.1]}
24. Qd4+ {[%clk 0:01:53.4]} 24... Kg8 {[%clk 0:01:23.5]} 25. Rac1 {[%clk
0:01:44.9]} 25... Nc5 {[%clk 0:01:22.9]} 26. Rcd1 {[%clk 0:01:26.4]} 26... Nc2
{[%clk 0:01:21.2]} 27. Qd2 {[%clk 0:01:25.5]} 27... Nxe1 {[%clk 0:01:19.6]} 28.
Rxe1 {[%clk 0:01:25.5]} 28... Nxe4 {[%clk 0:01:19.2]} 29. Qe3 {[%clk 0:01:21.4]}
29... Re8 {[%clk 0:01:11]} 30. Bf1 {[%clk 0:01:20.6]} 30... f5 {[%clk
0:00:51.6]} 31. Nd4 {[%clk 0:01:17.3]} 31... Qd7 {[%clk 0:00:46.5]} 32. Ne6
{[%clk 0:01:02.1]} 32... Nxc3 {[%clk 0:00:45.2]} 33. Qxc3 {[%clk 0:01:03]} 33...
Re7 {[%clk 0:00:45.5]} 34. Bxc4 {[%clk 0:00:54.6]} 34... Rc8 {[%clk 0:00:38.5]}
35. Bxb5 {[%clk 0:00:53.8]} 35... axb5 {[%clk 0:00:35.9]} 36. Qf6 {[%clk
0:00:51.5]} 36... Rce8 {[%clk 0:00:19.4]} 37. Re5 {[%clk 0:00:46.7]} 37... Qd6
{[%clk 0:00:18.7]} 38. Rxf5 {[%clk 0:00:17.6]} 38... Rxe6 {[%clk 0:00:12.9]} 39.
Qf7+ {[%clk 0:00:16.5]} 39... Kh8 {[%clk 0:00:13.2]} 40. dxe6 {[%clk 0:00:16.5]}
40... Qd1# {[%clk 0:00:12.8]} 0-1

[Event "*** Titled Tuesday Blitz"]
[Site "Chess.com"]
[Date "2020.11.03"]
[Round "7"]
[White "TokChess"]
[Black "glebus008"]
[Result "1/2-1/2"]
[WhiteElo "2462"]
[BlackElo "2318"]
[TimeControl "180+1"]
[EndTime "11:20:46 PST"]
[Termination "Game drawn by repetition"]

1. c4 {[%clk 0:03:00.9]} 1... e6 {[%clk 0:02:59.6]} 2. Nf3 {[%clk 0:03:00.6]}
2... d5 {[%clk 0:03:00.2]} 3. b3 {[%clk 0:02:59.9]} 3... Nf6 {[%clk 0:03:00.6]}
4. Bb2 {[%clk 0:02:59.5]} 4... Be7 {[%clk 0:03:00.9]} 5. e3 {[%clk 0:02:59.6]}
5... O-O {[%clk 0:03:00.9]} 6. Be2 {[%clk 0:02:59.7]} 6... c5 {[%clk 0:02:56.7]}
7. a3 {[%clk 0:02:57.6]} 7... Nc6 {[%clk 0:02:53.1]} 8. d3 {[%clk 0:02:57.6]}
8... a5 {[%clk 0:02:43]} 9. cxd5 {[%clk 0:02:53.8]} 9... Nxd5 {[%clk 0:02:43.9]}
10. Nbd2 {[%clk 0:02:52.6]} 10... b6 {[%clk 0:02:38.3]} 11. O-O {[%clk
0:02:52.6]} 11... Bb7 {[%clk 0:02:38.5]} 12. Qc2 {[%clk 0:02:52.6]} 12... Rc8
{[%clk 0:02:37.2]} 13. Rac1 {[%clk 0:02:52.4]} 13... f6 {[%clk 0:02:27.9]} 14.
Qb1 {[%clk 0:02:50.2]} 14... e5 {[%clk 0:02:27.8]} 15. Bd1 {[%clk 0:02:49.7]}
15... Kh8 {[%clk 0:02:26]} 16. Bc2 {[%clk 0:02:49.8]} 16... g6 {[%clk 0:02:11]}
17. h4 {[%clk 0:02:49]} 17... Kg7 {[%clk 0:02:08.8]} 18. Rfe1 {[%clk 0:02:47.6]}
18... Qd7 {[%clk 0:02:07.3]} 19. Ne4 {[%clk 0:02:47.6]} 19... h6 {[%clk
0:01:48]} 20. Ng3 {[%clk 0:02:44.6]} 20... Bd6 {[%clk 0:01:29.1]} 21. d4 {[%clk
0:02:42.3]} 21... Nde7 {[%clk 0:01:23.8]} 22. dxe5 {[%clk 0:02:31.8]} 22... Nxe5
{[%clk 0:01:23]} 23. Nxe5 {[%clk 0:02:24.3]} 23... Bxe5 {[%clk 0:01:23.9]} 24.
Red1 {[%clk 0:02:19.8]} 24... Qg4 {[%clk 0:01:13.3]} 25. Bxe5 {[%clk 0:02:11.3]}
25... fxe5 {[%clk 0:01:14.2]} 26. Be4 {[%clk 0:02:09.6]} 26... Bxe4 {[%clk
0:01:11.6]} 27. Qxe4 {[%clk 0:02:07.9]} 27... Qxe4 {[%clk 0:01:10.2]} 28. Nxe4
{[%clk 0:02:08.1]} 28... Rcd8 {[%clk 0:01:08.2]} 29. Nd6 {[%clk 0:01:59.7]}
29... Nf5 {[%clk 0:00:50.6]} 30. Nc4 {[%clk 0:01:51.3]} 30... Nxh4 {[%clk
0:00:42.4]} 31. Nxb6 {[%clk 0:01:50.4]} 31... Rxd1+ {[%clk 0:00:41.8]} 32. Rxd1
{[%clk 0:01:50.3]} 32... Rb8 {[%clk 0:00:42.1]} 33. Rd6 {[%clk 0:01:44.5]} 33...
Nf5 {[%clk 0:00:39.2]} 34. Rc6 {[%clk 0:01:43.8]} 34... Ne7 {[%clk 0:00:26.2]}
35. Rd6 {[%clk 0:01:17.8]} 35... Nf5 {[%clk 0:00:26.2]} 36. Re6 {[%clk
0:01:09.2]} 36... Kf7 {[%clk 0:00:23.7]} 37. Rc6 {[%clk 0:00:51.1]} 37... Ne7
{[%clk 0:00:23.1]} 38. Rd6 {[%clk 0:00:39.7]} 38... Nf5 {[%clk 0:00:23.6]} 39.
Rc6 {[%clk 0:00:20]} 39... Ne7 {[%clk 0:00:22.8]} 40. Rd6 {[%clk 0:00:19]} 40...
Nf5 {[%clk 0:00:22.8]} 41. Rc6 {[%clk 0:00:19.1]} 1/2-1/2